fUST/lending_fUST_20240104
["ID","MTS","AMOUNT","RATE_DAILY","PERIOD"]
[310118183,1704371443213,-7194.709722,0.00027219,2]
[310118245,1704371742774,1000.0,0.00027,43]
[310118248,1704371820804,150.78889555,0.00028579,30]
[310118249,1704371820877,150.78889555,0.00028007,120]
[310118257,1704372152533,150.80395486,0.00028762,30]
[310118258,1704372152595,150.80395486,0.00028187,120]
[310118267,1704372546280,-154.79876161,0.00023717,4]
[310118268,1704372546302,-167.0,0.00023718,2]
[310118269,1704372546415,-3728.63322546,0.00024297,2]
[310118463,1704372638616,-154.79876161,0.00024296,4]
[310118464,1704372638628,-154.79876161,0.00024297,2]
[310118465,1704372638637,-2076.65490248,0.00024297,2]
[310118466,1704372638646,-6176.03342022,0.00024297,2]
[310118467,1704372638656,-5942.09361641,0.00024298,2]
[310118468,1704372638665,-166.666666,0.00024704,2]
[310118469,1704372638674,-2481.77043544,0.00025,2]
[310118470,1704372638683,-228.127586,0.00025026,2]
[310118471,1704372638693,-213.6448499,0.00025036,2]
[310118472,1704372638702,-679.56551195,0.00025116,2]
[310118473,1704372638711,-606.27948594,0.00025117,2]
[310118474,1704372638721,-166.666666,0.00025378,2]
[310118475,1704372638731,-166.666666,0.00026051,2]
[310118476,1704372638740,-844.89472761,0.00026137,2]
[310118477,1704372638749,-167.0,0.00026718,2]
[310118478,1704372638759,-166.666666,0.00026725,2]
[310118479,1704372638768,-200.0,0.00026727,15]
[310118480,1704372638778,-3000.0,0.00026844,2]
[310118481,1704372638787,-1819.50931487,0.00026845,2]
[310118482,1704372638797,-154.82968827,0.00026845,4]
[310118483,1704372638806,-189.23344718,0.00026845,2]
[310118484,1704372638815,-6353.88825429,0.00026958,2]
[310118485,1704372638824,-5146.14849192,0.00026959,2]
[310118486,1704372638834,-9796.88590444,0.00027,2]
[310118487,1704372638843,-1500.0,0.00027,2]
[310118488,1704372638852,-9714.17161637,0.00027019,2]
[310118489,1704372638862,-525.12671748,0.00027118,2]
[310118490,1704372638871,-4647.17694669,0.00027207,2]
[310118491,1704372638880,-953.36702166,0.00027208,2]
[310118492,1704372638889,-2646.06,0.00027208,3]
[310118493,1704372638899,-2205.05,0.00027208,3]
[310118494,1704372638908,-187.6959516,0.00027217,2]
[310118495,1704372638918,-613.10329314,0.00027217,2]
[310118496,1704372638927,-963.0257158,0.00027217,2]
[310118497,1704372638937,-558.51022814,0.00027217,2]
[310118498,1704372638947,-305.68639929,0.00027218,2]
[310118499,1704372638957,-4704.77366573,0.00027218,2]
[310118500,1704372638967,-457.69978687,0.00027218,4]
[310118501,1704372638976,-370.81917998,0.00027218,4]
[310118502,1704372638986,-502.14718879,0.00027218,4]
[310118503,1704372638995,-180.55240889,0.00027218,4]
[310118504,1704372639005,-172.28679987,0.00027218,2]
[310118505,1704372639014,-410.85002068,0.00027218,2]
[310118506,1704372639023,-370.81917998,0.00027218,4]
[310118507,1704372639033,-402528.99658523,0.00027219,2]
[310118508,1704372639046,-20499.35663572,0.00027219,2]
[310118509,1704372639056,-183.02409896,0.00027219,2]
[310118510,1704372639066,-213.26712396,0.00027219,2]
[310118511,1704372639077,-154.81422293,0.00027219,2]
[310118512,1704372639087,-489.61790766,0.00027219,2]
[310118513,1704372639097,-154.79876161,0.00027219,2]
[310118514,1704372639107,-155.0,0.00027397,2]
[310118515,1704372639116,-166.666666,0.00027399,2]
[310118516,1704372639127,-631.24473638,0.00027444,2]
[310118517,1704372639137,-4075.36162051,0.000275,2]
[310118518,1704372639294,-709.79694883,0.000275,2]
[310118519,1704372639367,-454.09870644,0.000275,2]
[310118681,1704372643563,-769.75413322,0.00027217,2]
[310118682,1704372643573,-99.00086678,0.000275,2]
[310118694,1704372646423,-1128.15311956,0.000275,2]
[310118695,1704372646436,-1334.7826978,0.000275,2]
[310118696,1704372646445,-451.8272974,0.00027644,2]
[310118697,1704372646455,-344.36468707,0.00028,2]
[310118698,1704372646465,-154.86062544,0.00028,2]
[310118699,1704372646476,-1000.0,0.00028,28]
[310118700,1704372646485,-1500.0,0.00028,2]
[310118701,1704372646495,-166.666666,0.00028072,2]
[310118702,1704372646505,-304.54459157,0.00028187,2]
[310118703,1704372646515,-3125.50457669,0.00028187,2]
[310118704,1704372646525,-404.29862342,0.00028187,2]
[310118705,1704372646537,-358.24802444,0.00028187,2]
[310118706,1704372646546,-200.0,0.000284,4]
[310118707,1704372646556,-151.51138725,0.00028698,2]
[310118708,1704372646566,-5000.0,0.00028698,2]
[310118709,1704372646575,-1321.08258665,0.000287,2]
[310118710,1704372646585,-155.0,0.00028767,2]
[310118711,1704372646594,-5623.48478446,0.0002879,2]
[310118712,1704372646604,-2235.82770962,0.000288,2]
[310118713,1704372706766,150.80395486,0.00028958,30]
[310118714,1704372706894,150.80395486,0.00028379,120]
[310118719,1704372927150,150.80395486,0.0002848,120]
[310118720,1704373370746,150.78889555,0.0002846,120]
[310118723,1704373594103,-154.79876161,0.00023875,4]
[310118724,1704373594124,-213.0,0.00023876,2]
[310118725,1704373594145,-248.85244994,0.00024297,2]
[310118726,1704373594166,-193.66420536,0.00024297,2]
[310118727,1704373594187,-707.28577825,0.00025119,2]
[310118728,1704373594210,-166.6666673,0.00025358,2]
[310118729,1704373594231,-162.605991,0.00025617,2]
[310118730,1704373594251,-162.605991,0.00025617,2]
[310118731,1704373594337,-162.605991,0.00025617,2]
[310118732,1704373594356,-167.0,0.00026876,2]
[310118733,1704373594376,-196.15705152,0.00027235,4]
[310118734,1704373594395,-317.84501142,0.00027235,4]
[310118735,1704373594415,-176.07858029,0.00027235,2]
[310118736,1704373594435,-1021.26550838,0.00027236,2]
[310118737,1704373754534,150.80395486,0.00028697,120]
[310118738,1704373824655,250.0,0.00025099,7]
[310118952,1704373838849,-154.79876161,0.00024295,4]
[310118953,1704373838858,-5803.64293103,0.00024296,2]
[310118954,1704373838867,-2031.62,0.00027226,3]
[310118955,1704373838877,-979.75,0.00027226,3]
[310118956,1704373838886,-72402.48640201,0.00027236,2]
[310118957,1704373838898,-11051.41094785,0.00027236,2]
[310118958,1704373838909,-8232.79193547,0.00027236,2]
[310119006,1704373843783,-886.88339976,0.00027226,3]
[310119015,1704373846627,-642.83660024,0.00027226,3]
[310119016,1704373846637,-11385.56136723,0.00027236,2]
[310119017,1704373846650,-233450.45754907,0.00027236,2]
[310119018,1704373846660,-155.0,0.00027397,2]
[310119019,1704373846670,-344.36468707,0.00028,2]
[310119020,1704373846683,-1539.62664763,0.00028023,2]
[310119021,1704373846693,-3195.21316387,0.000283,4]
[310119022,1704373846703,-200.0,0.000283,4]
[310119023,1704373846713,-306.0,0.00028309,2]
[310119024,1704373846723,-309.8493615,0.00028309,2]
[310119025,1704373846735,-153.0,0.00028309,2]
[310119026,1704373846746,-306.0,0.00028309,2]
[310119027,1704373846756,-153.0,0.00028309,2]
[310119028,1704373846767,-153.0,0.00028309,2]
[310119029,1704373846777,-155.64457504,0.00028512,2]
[310119030,1704373846789,-505.89570759,0.00028554,2]
[310119031,1704373846799,-762.54664786,0.00028697,2]
[310119032,1704373846810,-3125.50457669,0.00028697,2]
[310119033,1704373846820,-154.79876161,0.00028697,2]
[310119034,1704373846830,-1321.08258665,0.000287,2]
[310119035,1704373846840,-155.0,0.00028767,2]
[310119036,1704373846850,-304.33004763,0.000288,2]
[310119037,1704373846860,-5170.55191556,0.000288,2]
[310119038,1704373846871,-620.56223682,0.00028816,2]
[310119039,1704373846881,-1000.0,0.00029,29]
[310119040,1704373846891,-3132.33587949,0.00029,2]
[310119041,1704373846903,-3467.56235415,0.00029,2]
[310119042,1704373846913,-3600.68665082,0.00029,2]
[310119043,1704373846923,-3600.68665082,0.00029,2]
[310119044,1704373846932,-3600.68665082,0.00029,2]
[310119045,1704373847007,-3600.68665082,0.00029,2]
[310119046,1704373847019,-3600.68665082,0.00029,2]
[310119047,1704373847029,-3600.68665082,0.00029,2]
[310119048,1704373847039,-3600.68665082,0.00029,2]
[310119049,1704373847050,-3600.68665082,0.00029,2]
[310119050,1704373847060,-3600.68665082,0.00029,2]
[310119051,1704373847070,-3600.68665082,0.00029,2]
[310119052,1704373847081,-300.0,0.00029,14]
[310119053,1704373847091,-1516.008675,0.00029,2]
[310119054,1704373847102,-500.0,0.00029,2]
[310119055,1704373847113,-500.0,0.00029,2]
[310119056,1704373847123,-500.0,0.00029,2]
[310119057,1704373847133,-500.0,0.00029,2]
[310119058,1704373847144,-500.0,0.00029,2]
[310119059,1704373847156,-154.8915759,0.00029157,2]
[310119060,1704373847166,-162.51375347,0.00029157,2]
[310119061,1704373847176,-489.0749698,0.00029203,2]
[310119062,1704373847186,-150.80395486,0.00029283,30]
[310119063,1704373847197,-254.50330608,0.00029293,2]
[310119064,1704373847208,-6991.81959191,0.00029293,2]
[310119065,1704373847219,-679.56551195,0.00029469,2]
[310119066,1704373847230,-393.66455716,0.00029498,2]
[310119067,1704373847240,-3000.0,0.00029498,2]
[310119068,1704373847250,-157.56075018,0.00029498,2]
[310119069,1704373847261,-1847.12423129,0.00029498,2]
[310119070,1704373847273,-359.90512707,0.00029498,2]
[310119071,1704373847284,-347.2162539,0.00029499,2]
[310119072,1704373847296,-164.62847244,0.00029499,2]
[310119073,1704373847315,-21935.21168305,0.000295,30]
[310119074,1704373847333,-150.0,0.00029698,2]
[310119075,1704373847343,-251.32811126,0.00029701,3]
[310119076,1704373847353,-2983.05,0.00029789,2]
[310119077,1704373847364,-2983.05,0.00029789,2]
[310119078,1704373847374,-2983.05,0.00029789,2]
[310119079,1704373847384,-127921.29805785,0.0002979,7]
[310119080,1704373847394,-496.1966346,0.000298,5]
[310119081,1704373847405,-167.0,0.00029876,2]
[310119082,1704373847415,-150.80395486,0.00029881,7]
[310119083,1704373847426,-4050.43198707,0.000299,2]
[310119084,1704373847436,-200.0,0.00029958,15]
[310119085,1704373847445,-100003.0,0.0003,2]
[310119086,1704373847455,-601.0,0.0003,2]
[310119087,1704373847465,-638.44894353,0.0003,4]
[310119088,1704373847474,-154.87609912,0.0003,4]
[310119089,1704373847483,-7027.47135002,0.0003,4]
[310119090,1704373847493,-1029.11557619,0.0003,4]
[310119091,1704373847503,-1041.39508048,0.0003,10]
[310119092,1704373847513,-2310.97485723,0.0003,4]
[310119093,1704373847525,-155.37026515,0.0003,2]
[310119094,1704373847536,-412.29942314,0.0003,4]
[310119095,1704373847546,-243.37606438,0.0003,4]
[310119096,1704373847556,-6536.43197787,0.0003,4]
[310119097,1704373847566,-685.53559507,0.0003,4]
[310119098,1704373847577,-154.86062544,0.0003,4]
[310119099,1704373847588,-1000.0,0.0003,30]
[310119100,1704373847598,-3424.38304673,0.0003,2]
[310119101,1704373847608,-6604.16009329,0.0003,3]
[310119105,1704374110324,150.80395486,0.00029996,120]
[310119106,1704374460880,150.80395486,0.00029183,120]
[310119107,1704374840916,150.78889555,0.00029304,120]
[310119161,1704375031713,-871.39988609,0.00024759,2]
[310119163,1704375031723,-154.79876161,0.00024759,4]
[310119165,1704375031733,-154.79876161,0.0002476,2]
[310119166,1704375031743,-154.79876161,0.0002476,2]
[310119167,1704375031753,-166.361402,0.00024761,2]
[310119168,1704375031763,-238.0,0.00024772,2]
[310119170,1704375031772,-757.03758915,0.00024878,5]
[310119172,1704375031781,-166.666666,0.00024947,2]
[310119173,1704375031792,-272.500371,0.00025053,2]
[310119175,1704375031801,-933.48389588,0.00025183,2]
[310119281,1704375045822,-166.361402,0.00024758,2]
[310119283,1704375045832,-154.90701868,0.00025181,2]
[310119285,1704375045841,-178.73157932,0.00025182,2]
[310119294,1704375121983,150.80395486,0.00028795,120]
[310119295,1704375212208,260.0,0.0003,120]
[310119296,1704375250451,275.95510762,0.00029,30]
[310119297,1704375354405,220.0,0.0002509,7]
[310119298,1704375557441,150.80395486,0.00028923,120]
[310119299,1704375964480,150.78889555,0.00028951,120]
[310119304,1704376136633,1725.54899513,0.00029,30]
[310119305,1704376153233,-250.0,0.00021554,2]
[310119306,1704376153255,-154.79876161,0.00022321,4]
[310119307,1704376153276,-166.666666,0.00022322,2]
[310119308,1704376153297,-212.29589989,0.00022451,2]
[310119309,1704376153316,-212.29589989,0.00022451,2]
[310119310,1704376153337,-36779.03407902,0.00022452,2]
[310119311,1704376153357,-14010.68410633,0.00022453,2]
[310119312,1704376160095,-2538.3366,0.00022453,2]
[310119313,1704376167112,-8350.97929367,0.00022453,2]
[310119314,1704376167133,-272.500371,0.00022604,2]
[310119315,1704376167153,-166.666666,0.00023336,2]
[310119316,1704376167172,-171.0,0.00023692,2]
[310119317,1704376167193,-174.462204,0.00024207,2]
[310119318,1704376167213,-97.39626102,0.0002435,2]
[310127803,1704376399554,150.80395486,0.00029433,120]
[310127804,1704376496139,200.0,0.00022382,7]
[310127805,1704376496972,280.0,0.0002462,7]
[310127807,1704376795103,200.0,0.0002235,7]
[310127808,1704376795872,280.0,0.00024585,7]
[310127809,1704376856016,150.81901718,0.00028205,30]
[310127810,1704376856099,150.81901718,0.00027641,120]
[310127813,1704377078616,150.81901718,0.00028433,30]
[310127814,1704377078680,150.81901718,0.00027864,120]
[310127815,1704377087901,210.0,0.00025099,7]
[310127816,1704377095360,200.0,0.00021974,7]
[310127817,1704377096128,280.0,0.00024171,7]
[310127818,1704377348194,-264.53886499,0.00019257,2]
[310127819,1704377348303,-154.84515485,0.00019257,2]
[310127820,1704377348324,-945.03415602,0.00019257,2]
[310127821,1704377348345,-154.84515485,0.00019258,3]
[310127822,1704377348365,-2027.50790733,0.00019258,2]
[310127823,1704377348385,-658.47497196,0.00019259,2]
[310127824,1704377369124,-154.84515485,0.00017335,3]
[310127825,1704377369143,-2997.9503727,0.00019257,2]
[310127826,1704377369162,-261.41294884,0.00019257,2]
[310127827,1704377369184,-1029.24597412,0.00019258,2]
[310127828,1704377369204,-361.22175449,0.00019259,2]
[310127829,1704377369223,-166.20606799,0.0001926,2]
[310127830,1704377369242,-683.13879405,0.0001926,2]
[310127831,1704377369263,-154.84515485,0.00019261,2]
[310127832,1704377369283,-212.29589989,0.00019261,2]
[310127833,1704377369302,-154.84515485,0.00019261,2]
[310127834,1704377369322,-13675.790189,0.00019261,2]
[310127835,1704377369341,-2067.82698933,0.00019261,2]
[310127836,1704377369360,-341.22944966,0.00019261,2]
[310127837,1704377369379,-264.81601131,0.00019261,2]
[310127838,1704377369399,-210.23039946,0.00019261,2]
[310127839,1704377369419,-2097.73160257,0.00019261,2]
[310127840,1704377369438,-945.03415602,0.00019262,2]
[310127841,1704377369461,-36779.03407902,0.00019263,2]
[310127842,1704377369482,-250.0,0.00019268,2]
[310127843,1704377369504,-2031.60443603,0.00019966,2]
[310127844,1704377369525,-7097.02,0.00019974,3]
[310127845,1704377369545,-3185.09941097,0.00019994,2]
[310127846,1704377395442,200.0,0.00021981,7]
[310127847,1704377396220,280.0,0.00024179,7]
[310127890,1704377438419,-352.45246413,0.00019983,2]
[310127891,1704377438432,-366.44752084,0.00019983,2]
[310127892,1704377438442,-202.09030381,0.00019983,2]
[310127893,1704377438453,-154.84515485,0.00019983,2]
[310127894,1704377438463,-546.11096109,0.00019994,2]
[310127895,1704377438473,-1701.12661066,0.00019994,2]
[310127896,1704377438482,-233.697544,0.00019995,2]
[310127897,1704377438492,-154.84515485,0.00020343,2]
[310127898,1704377438503,-265.01794046,0.00020344,2]
[310127899,1704377438513,-235.68021843,0.00020344,2]
[310127900,1704377438523,-154.84515485,0.00020344,2]
[310127901,1704377438532,-852.41517296,0.00020344,2]
[310127902,1704377438542,-2946.07601377,0.00020345,2]
[310127903,1704377438552,-2497.16242108,0.00020353,2]
[310127904,1704377438562,-174.462204,0.00020562,2]
[310127905,1704377438571,-10096.5178522,0.0002103,2]
[310127906,1704377438581,-189.756801,0.00021918,2]
[310127907,1704377438591,-154.84515485,0.00022498,4]
[310127908,1704377438601,-189.756801,0.000232,2]
[310127909,1704377438611,-154.82968734,0.00024171,4]
[310127910,1704377438622,-2076.65490248,0.00024171,2]
[310127911,1704377438633,-154.82968734,0.00024171,2]
[310127912,1704377438643,-716.32652654,0.0002435,2]
[310127913,1704377438653,-1419.29884884,0.0002435,5]
[310127914,1704377438663,-3009.76368581,0.0002435,2]
[310127915,1704377438673,-156.07978619,0.0002435,2]
[310127916,1704377438683,-189.756801,0.00024482,2]
[310127917,1704377438693,-974.55748819,0.00024875,2]
[310127918,1704377438704,-182.45853911,0.00024875,2]
[310127919,1704377438713,-156.72774072,0.00024899,2]
[310127920,1704377438723,-10127.8,0.00024988,3]
[310127921,1704377438732,-8439.83,0.00024988,3]
[310127922,1704377438742,-156.63971141,0.00024998,2]
[310127923,1704377438753,-326.30515883,0.00024998,2]
[310127924,1704377438763,-239.48878468,0.00024998,2]
[310127925,1704377438772,-536.60466648,0.00024998,2]
[310127926,1704377438875,-258.41448507,0.00024998,2]
[310127927,1704377438885,-154.84515485,0.00024998,2]
[310127928,1704377438895,-286.03259272,0.00024998,2]
[310127929,1704377438905,-675.8919533,0.00024998,2]
[310127930,1704377438914,-524.84202363,0.00024998,2]
[310127931,1704377438924,-349.44113555,0.00024998,2]
[310127932,1704377438934,-223.12894401,0.00024998,2]
[310127933,1704377438944,-212.29589989,0.00024998,2]
[310127934,1704377438953,-1122.85250417,0.00024998,2]
[310127935,1704377438963,-709.64196986,0.00024998,2]
[310127936,1704377438972,-36582.94393534,0.00024998,2]
[310127937,1704377438982,-966.88177596,0.00024998,2]
[310127938,1704377438994,-295.15982489,0.00024998,2]
[310127939,1704377439003,-4690.81088575,0.00024998,2]
[310127940,1704377439013,-20831.85137104,0.00024999,2]
[310127941,1704377439025,-647.80728508,0.00024999,2]
[310127942,1704377439033,-500.0,0.00024999,2]
[310127943,1704377439043,-401.38081646,0.00024999,2]
[310127944,1704377439053,-153.66166895,0.00024999,2]
[310127945,1704377439063,-160.55232658,0.00024999,2]
[310127946,1704377439073,-4704.77366573,0.00025,2]
[310127947,1704377439082,-1271.28004177,0.00025,2]
[310127948,1704377439093,-154.82968734,0.00025,2]
[310127949,1704377439103,-46423.0,0.00025,2]
[310127950,1704377439112,-344.36468707,0.00025,2]
[310127951,1704377439122,-1029.43693395,0.0002508,2]
[310127952,1704377439134,-666.08453399,0.00025181,2]
[310127953,1704377439143,-150.0,0.00025218,2]
[310127954,1704377439152,-167.0,0.00025218,2]
[310127955,1704377439162,-2497.16242108,0.00025353,2]
[310127956,1704377439171,-200.0,0.00025479,2]
[310127957,1704377439181,-525.12671748,0.00026,2]
[310127958,1704377439190,-276.5020075,0.00026265,2]
[310127959,1704377439203,-640.4718467,0.00026334,2]
[310127960,1704377439214,-391.0,0.00026597,15]
[310127961,1704377439223,-155.0,0.00027397,2]
[310127962,1704377439232,-156.72774072,0.00027398,2]
[310127963,1704377439241,-154.84515485,0.00027501,2]
[310127964,1704377439250,-154.84515485,0.00027639,2]
[310127965,1704377439260,-348.97310362,0.00027639,2]
[310127966,1704377439269,-154.86062544,0.0002764,2]
[310127967,1704377439278,-4910.23012541,0.0002764,2]
[310127968,1704377439289,-3002.87321176,0.00027641,2]
[310127969,1704377439298,-762.54664786,0.00027641,2]
[310127970,1704377439307,-762.54664786,0.00027641,2]
[310127971,1704377439317,-3125.50457669,0.00027641,2]
[310127972,1704377439326,-154.82968734,0.00027642,2]
[310127973,1704377439336,-1389.46325333,0.00027642,2]
[310127974,1704377439345,-1193.2978632,0.00027642,2]
[310127975,1704377439355,-621.02359233,0.00027651,2]
[310127976,1704377439364,-1321.08258665,0.000279,2]
[310127977,1704377439374,-150.0,0.00028218,2]
[310127978,1704377439384,-3482.07899464,0.000287,4]
[310127979,1704377439393,-155.0,0.00028767,2]
[310127980,1704377439402,-200.0,0.000288,4]
[310127981,1704377439413,-373.91217151,0.00028899,4]
[310127982,1704377439423,-500.0,0.00028899,4]
[310127983,1704377439434,-385.4960337,0.00028899,4]
[310127984,1704377439443,-240.00042541,0.00028899,4]
[310127985,1704377439454,-500.0,0.00028899,4]
[310127986,1704377439463,-466.93609376,0.00028899,4]
[310127987,1704377439474,-258.97261914,0.00028899,4]
[310127988,1704377439484,-500.0,0.00028899,4]
[310127989,1704377439493,-2906.050505,0.000289,2]
[310127990,1704377439503,-3467.56235415,0.00029,2]
[310127991,1704377439513,-300.0,0.00029,14]
[310127992,1704377439523,-1500.0,0.00029,2]
[310127993,1704377439533,-199.2338,0.00029,2]
[310127994,1704377439542,-199.2338,0.00029,2]
[310127995,1704377439553,-150.81901718,0.00029013,7]
[310127996,1704377439562,-620.05117962,0.00029033,2]
[310127997,1704377439573,-1819.50931487,0.00029183,2]
[310127998,1704377439582,-747.82953088,0.00029183,2]
[310128000,1704377439594,-154.79876161,0.00029183,2]
[310128001,1704377439603,-154.79876161,0.00029183,2]
[310128002,1704377439613,-154.87609912,0.00029192,2]
[310128003,1704377439622,-200.0,0.00029257,15]
[310128004,1704377439632,-348.0,0.00029257,15]
[310128005,1704377439642,-253.22751891,0.00029498,2]
[310128006,1704377439651,-192.64597394,0.00029498,2]
[310128007,1704377439663,-303.67115654,0.00029499,2]
[310128008,1704377439673,-21935.21168305,0.000295,30]
[310128009,1704377439682,-151.0,0.000295,2]
[310128010,1704377439692,-151.0,0.000295,2]
[310128011,1704377439702,-151.0,0.000295,2]
[310128012,1704377439711,-7837.02142655,0.00029579,2]
[310128013,1704377439721,-150.81901718,0.00029605,4]
[310128014,1704377439730,-498.15417898,0.000298,5]
[310128015,1704377439743,-242.01122945,0.00029878,2]
[310128016,1704377439753,-9082.80246241,0.0002988,4]
[310128017,1704377439763,-199.2338,0.0002988,2]
[310128018,1704377439772,-199.2338,0.0002988,2]
[310128019,1704377439784,-156.72774072,0.00029896,2]
[310128020,1704377439794,-151.0,0.00029899,2]
[310128021,1704377439805,-151.0,0.00029899,2]
[310128022,1704377439814,-151.0,0.00029899,2]
[310128023,1704377439824,-199.2338,0.00029899,2]
[310128024,1704377439833,-199.2338,0.00029899,2]
[310128025,1704377439842,-233.697544,0.00029993,2]
[310128026,1704377439851,-9454.15278441,0.00029996,2]
[310128027,1704377439861,-155.02196719,0.00029996,2]
[310128028,1704377439871,-2047.92,0.00029999,2]
[310128029,1704377439881,-2047.92,0.00029999,2]
[310128030,1704377439890,-2047.92,0.00029999,2]
[310128031,1704377439899,-2047.92,0.00029999,2]
[310128032,1704377439908,-2047.92,0.00029999,2]
[310128033,1704377439918,-2047.92,0.00029999,2]
[310128034,1704377439928,-25553.8761522,0.0003,3]
[310128035,1704377439937,-18523.64146714,0.0003,2]
[310128036,1704377440003,-27975.07854743,0.0003,30]
[310128037,1704377440013,-154.79876161,0.0003,4]
[310128038,1704377440022,-638.08762863,0.0003,4]
[310128039,1704377440031,-163.23455151,0.0003,4]
[310128040,1704377440040,-243.37606438,0.0003,4]
[310128041,1704377440050,-6536.43197787,0.0003,4]
[310128042,1704377440060,-7027.47135002,0.0003,4]
[310128043,1704377440070,-781.90839515,0.0003,4]
[310128044,1704377440079,-5100.728,0.0003,30]
[310128045,1704377440088,-500.0,0.0003,2]
[310128046,1704377440097,-500.0,0.0003,2]
[310128047,1704377440106,-500.0,0.0003,2]
[310128048,1704377440116,-500.0,0.0003,2]
[310128049,1704377440125,-500.0,0.0003,2]
[310128050,1704377440135,-10000.0,0.0003,2]
[310128051,1704377440144,-2000.0,0.0003,2]
[310128052,1704377440153,-2749.0816799,0.0003,2]
[310128053,1704377440163,-23344.1456447,0.0003,10]
[310128054,1704377440173,-170.63772567,0.0003,2]
[310128056,1704377440182,-155.39433661,0.0003,30]
[310128057,1704377440191,-685.53559507,0.0003,4]
[310128058,1704377440205,-159.01242882,0.0003,2]
[310128059,1704377440215,-1200.0,0.0003,4]
[310128060,1704377440224,-151.0,0.0003,2]
[310128061,1704377440236,-151.0,0.0003,2]
[310128062,1704377440246,-151.0,0.0003,2]
[310128063,1704377440255,-151.0,0.0003,2]
[310128064,1704377440264,-151.0,0.0003,2]
[310128065,1704377440273,-151.0,0.0003,2]
[310128066,1704377440282,-151.0,0.0003,2]
[310128067,1704377440292,-151.0,0.0003,2]
[310128068,1704377440301,-151.0,0.0003,2]
[310128069,1704377440311,-151.0,0.0003,2]
[310128070,1704377440320,-151.0,0.0003,2]
[310128071,1704377440330,-256.53220004,0.0003,2]
[310128072,1704377440339,-1500.0,0.0003,2]
[310128073,1704377440348,-537.466684,0.0003,3]
[310128074,1704377440358,-221.0,0.0003,2]
[310128075,1704377440366,-199.2338,0.0003,2]
[310128076,1704377440376,-199.2338,0.0003,2]
[310128077,1704377440385,-199.2338,0.0003,2]
[310128078,1704377440394,-199.2338,0.0003,2]
[310128079,1704377440404,-199.2338,0.0003,2]
[310128080,1704377440414,-199.2338,0.0003,2]
[310128081,1704377440424,-197.05769711,0.0003013,2]
[310128082,1704377440433,-151.0,0.00030137,2]
[310128083,1704377440443,-48562.3766176,0.00030137,2]
[310128084,1704377440462,-199.2338,0.00030137,2]
[310128085,1704377440475,-199.2338,0.00030137,2]
[310128086,1704377440486,-155.0,0.00030137,2]
[310128087,1704377440496,-150.81901718,0.0003021,2]
[310128088,1704377440506,-2497.16242108,0.00030353,2]
[310128089,1704377440516,-151.0,0.00030464,2]
[310128090,1704377440527,-620.00255898,0.00030485,2]
[310128091,1704377440537,-300.0,0.000305,15]
[310128092,1704377440547,-150.53704975,0.00030898,2]
[310128093,1704377440559,-1000.0,0.00031,31]
[310128094,1704377440570,-246.00480446,0.00031094,2]
[310128095,1704377440580,-282.15862485,0.00031094,3]
[310128096,1704377440592,-150.0,0.00031218,2]
[310128097,1704377440602,-155.0,0.00031507,2]
[310128098,1704377440612,-23444.35180738,0.00031697,15]
[310128099,1704377440622,-333.06538241,0.00031797,4]
[310128100,1704377440633,-1369.37707364,0.00031949,11]
[310128101,1704377440644,-384.907467,0.00032,2]
[310128102,1704377440653,-1348.93295867,0.00032,2]
[310128103,1704377440663,-1000.0,0.00032,32]
[310128104,1704377440673,-3238.71926879,0.00032,10]
[310128105,1704377440683,-300.0,0.00032,16]
[310128106,1704377440693,-620.00012795,0.00032009,2]
[310128107,1704377440703,-200.0,0.00032183,15]
[310128108,1704377440713,-200.0,0.00032183,15]
[310128109,1704377440723,-368.0,0.00032183,15]
[310128110,1704377440733,-151.0,0.00032279,2]